[Event "2026 European Womens Championship"]
[Site "Batumi, GE"]
[Date "2026.05.30"]
[Round "6"]
[White "Liavonava, Yuliya"]
[Black "Purtseladze, Maka"]
[Result "1/2-1/2"]
[Board "93"]
[TimeControl "5400+30"]
[WhiteFideId "13524178"]
[BlackFideId "13602659"]
[WhiteElo "2118"]
[BlackElo "2237"]
[WhiteTitle "WFM"]
[BlackTitle "IM"]
[WhiteClock "0:05:27"]
[BlackClock "0:04:08"]
[Variant "Standard"]

1. e4 {[%clk 1:30:59]}  c6 {[%clk 1:30:54]} 2. d4 {[%clk 1:31:25]}  d5 {[%clk 1:31:20]} 3. e5 {[%clk 1:31:53]}  Bf5 {[%clk 1:31:36]}
4. h4 {[%clk 1:32:18]}  h5 {[%clk 1:31:45]} 5. Bd3 {[%clk 1:32:41]}  Qd7 {[%clk 1:31:49]} 6. Nf3 {[%clk 1:30:08]}  Bg4 {[%clk 1:31:18]}
7. a4 {[%clk 1:21:55]}  e6 {[%clk 1:30:04]} 8. c3 {[%clk 1:21:29]}  c5 {[%clk 1:23:07]} 9. dxc5 {[%clk 1:18:58]}  Bxc5 {[%clk 1:23:30]}
10. b4 {[%clk 1:15:18]}  Be7 {[%clk 1:21:54]} 11. Be3 {[%clk 1:07:42]}  Nh6 {[%clk 1:20:23]} 12. a5 {[%clk 0:48:11]}  Nf5 {[%clk 1:06:41]}
13. Bxf5 {[%clk 1:03:01]}  Bxf5 {[%clk 1:02:53]} 14. Nbd2 {[%clk 0:47:59]}  Bd3 {[%clk 0:53:16]} 15. Nb3 {[%clk 0:48:24]}  Bc4 {[%clk 0:53:24]}
16. Nc5 {[%clk 0:45:08]}  Qc7 {[%clk 0:50:37]} 17. Qa4+ {[%clk 0:42:38]}  Nd7 {[%clk 0:43:10]} 18. Nxd7 {[%clk 0:34:08]}  Qxd7 {[%clk 0:43:35]}
19. Qxd7+ {[%clk 0:34:34]}  Kxd7 {[%clk 0:43:59]} 20. Nd2 {[%clk 0:34:42]}  Rhc8 {[%clk 0:27:17]} 21. Bd4 {[%clk 0:34:35]}  Rc6 {[%clk 0:20:38]}
22. f4 {[%clk 0:30:20]}  Rac8 {[%clk 0:12:13]} 23. Bxa7 {[%clk 0:25:32]}  Bd3 {[%clk 0:12:38]} 24. Bd4 {[%clk 0:21:30]}  Rxc3 {[%clk 0:13:01]}
25. Bxc3 {[%clk 0:21:58]}  Rxc3 {[%clk 0:13:26]} 26. Kf2 {[%clk 0:21:49]}  Bxb4 {[%clk 0:13:34]} 27. Nf3 {[%clk 0:22:11]}  Be4 {[%clk 0:11:06]}
28. Kg3 {[%clk 0:20:45]}  Ba3 {[%clk 0:09:14]} 29. Ra2 {[%clk 0:20:07]}  Bd3 {[%clk 0:08:27]} 30. Rha1 {[%clk 0:18:40]}  Bc5 {[%clk 0:07:40]}
31. Rb2 {[%clk 0:17:42]}  Ba6 {[%clk 0:07:17]} 32. Ra4 {[%clk 0:17:26]}  f6 {[%clk 0:05:13]} 33. Kh2 {[%clk 0:16:41]}  Kc6 {[%clk 0:03:26]}
34. Nd4+ {[%clk 0:09:37]}  Bxd4 {[%clk 0:03:50]} 35. Rxd4 {[%clk 0:10:06]}  Kc5 {[%clk 0:04:01]} 36. Rd1 {[%clk 0:09:27]}  fxe5 {[%clk 0:02:34]}
37. fxe5 {[%clk 0:09:53]}  Re3 {[%clk 0:01:37]} 38. Rc2+ {[%clk 0:09:18]}  Kb4 {[%clk 0:00:57]} 39. Rc7 {[%clk 0:06:36]}  Rxe5 {[%clk 0:00:55]}
40. Rxg7 {[%clk 0:06:38]}  Re4 {[%clk 0:01:06]} 41. Kg3 {[%clk 0:03:41]}  Kxa5 {[%clk 0:11:59]} 42. Rh7 {[%clk 0:33:53]}  Be2 {[%clk 0:11:42]}
43. Ra1+ {[%clk 0:34:07]}  Kb6 {[%clk 0:12:02]} 44. Rb1+ {[%clk 0:34:27]}  Kc5 {[%clk 0:12:24]} 45. Rbxb7 {[%clk 0:32:34]}  Bg4 {[%clk 0:12:04]}
46. Rhc7+ {[%clk 0:26:40]}  Kd6 {[%clk 0:12:21]} 47. Rc2 {[%clk 0:26:06]}  Ra4 {[%clk 0:10:46]} 48. Rc1 {[%clk 0:24:52]}  Bf5 {[%clk 0:11:02]}
49. Rg7 {[%clk 0:22:31]}  Bg4 {[%clk 0:05:55]} 50. Rg8 {[%clk 0:20:14]}  Ra3+ {[%clk 0:06:00]} 51. Kf2 {[%clk 0:16:46]}  Ra2+ {[%clk 0:05:38]}
52. Kg3 {[%clk 0:17:08]}  Re2 {[%clk 0:05:32]} 53. Rxg4 {[%clk 0:13:58]}  hxg4 {[%clk 0:05:57]} 54. h5 {[%clk 0:14:23]}  Ke7 {[%clk 0:05:02]}
55. h6 {[%clk 0:08:59]}  Kf7 {[%clk 0:04:18]} 56. Rc7+ {[%clk 0:09:23]}  Kg8 {[%clk 0:04:42]} 57. Rd7 {[%clk 0:05:27]}  Kh8 {[%clk 0:04:08]}
58. Kf4 {[%clk 0:03:30]} 1/2-1/2

[Event "2026 European Womens Championship"]
[Site "Batumi, GE"]
[Date "2026.05.30"]
[Round "6"]
[White "Hryzlova, Sofiia"]
[Black "Koghuashvili, Tekla"]
[Result "1-0"]
[Board "94"]
[TimeControl "5400+30"]
[WhiteFideId "14174669"]
[BlackFideId "13621564"]
[WhiteElo "2226"]
[BlackElo "1921"]
[WhiteTitle "WIM"]
[WhiteClock "0:02:29"]
[BlackClock "0:14:48"]
[Variant "Standard"]

1. e4 {[%clk 1:29:43]}  c5 {[%clk 1:30:55]} 2. Nf3 {[%clk 1:28:49]}  e6 {[%clk 1:31:19]} 3. b3 {[%clk 1:25:28]}  Nc6 {[%clk 1:27:46]}
4. Qe2 {[%clk 1:19:31]}  e5 {[%clk 1:21:04]} 5. Bb2 {[%clk 1:17:08]}  d6 {[%clk 1:21:19]} 6. h3 {[%clk 1:14:17]}  g6 {[%clk 1:20:07]}
7. g3 {[%clk 1:10:54]}  Bg7 {[%clk 1:20:09]} 8. Bg2 {[%clk 1:11:06]}  Nge7 {[%clk 1:20:23]} 9. O-O {[%clk 1:08:30]}  O-O {[%clk 1:20:15]}
10. d3 {[%clk 1:08:10]}  f5 {[%clk 1:14:35]} 11. Nbd2 {[%clk 1:06:38]}  f4 {[%clk 1:12:03]} 12. c3 {[%clk 1:01:24]}  Kh8 {[%clk 1:08:17]}
13. Rad1 {[%clk 0:57:13]}  Ng8 {[%clk 1:03:24]} 14. d4 {[%clk 0:54:25]}  Qf6 {[%clk 0:55:23]} 15. gxf4 {[%clk 0:39:30]}  exd4 {[%clk 0:50:06]}
16. cxd4 {[%clk 0:36:29]}  Qxf4 {[%clk 0:48:14]} 17. Nc4 {[%clk 0:35:25]}  d5 {[%clk 0:39:31]} 18. exd5 {[%clk 0:34:45]}  Nxd4 {[%clk 0:38:44]}
19. Nxd4 {[%clk 0:31:39]}  cxd4 {[%clk 0:38:01]} 20. Qd2 {[%clk 0:30:55]}  b5 {[%clk 0:34:20]} 21. Na5 {[%clk 0:29:46]}  Qh4 {[%clk 0:32:12]}
22. Bxd4 {[%clk 0:29:26]}  Nf6 {[%clk 0:31:55]} 23. Qc3 {[%clk 0:28:16]}  Bd7 {[%clk 0:29:26]} 24. Qg3 {[%clk 0:26:48]}  Qh5 {[%clk 0:29:47]}
25. Nc6 {[%clk 0:25:47]}  Rae8 {[%clk 0:28:16]} 26. Qc3 {[%clk 0:18:21]}  Kg8 {[%clk 0:26:42]} 27. Rd3 {[%clk 0:07:10]}  b4 {[%clk 0:18:52]}
28. Qc4 {[%clk 0:05:11]}  Bf5 {[%clk 0:17:16]} 29. d6+ {[%clk 0:04:10]}  Be6 {[%clk 0:16:41]} 30. Qxb4 {[%clk 0:04:09]}  Rf7 {[%clk 0:14:54]}
31. Ne7+ {[%clk 0:03:42]}  Kh8 {[%clk 0:15:19]} 32. Re3 {[%clk 0:03:55]}  Bd7 {[%clk 0:14:53]} 33. Qc4 {[%clk 0:03:51]}  Rff8 {[%clk 0:15:04]}
34. Qc7 {[%clk 0:03:26]}  Rd8 {[%clk 0:14:37]} 35. Qc3 {[%clk 0:03:20]}  Qh4 {[%clk 0:12:50]} 36. Nd5 {[%clk 0:03:06]}  Bb5 {[%clk 0:12:45]}
37. Bxf6 {[%clk 0:02:02]}  Bxf6 {[%clk 0:13:09]} 38. Nxf6 {[%clk 0:02:29]}  Rxf6 {[%clk 0:12:53]} 39. Re4 {[%clk 0:02:35]}  Qg5 {[%clk 0:12:52]}
40. Re5 {[%clk 0:02:51]}  Qf4 {[%clk 0:12:29]} 41. Rxb5 {[%clk 0:02:58]}  Rdxd6 {[%clk 0:12:52]} 42. Rb8+ {[%clk 0:02:50]}  Kg7 {[%clk 0:13:16]}
43. Rb7+ {[%clk 0:03:13]}  Kh6 {[%clk 0:13:39]} 44. Qc7 {[%clk 0:03:18]}  Rd2 {[%clk 0:13:28]} 45. Qxh7+ {[%clk 0:02:47]}  Kg5 {[%clk 0:13:52]}
46. Rb5+ {[%clk 0:03:12]}  Rf5 {[%clk 0:14:14]} 47. Rxf5+ {[%clk 0:03:24]}  Qxf5 {[%clk 0:14:40]} 48. Qxa7 {[%clk 0:03:31]}  Re2 {[%clk 0:14:50]}
49. Qd4 {[%clk 0:02:24]}  Rxa2 {[%clk 0:14:19]} 50. f4+ {[%clk 0:01:50]}  Kh4 {[%clk 0:14:35]} 51. Qd8+ {[%clk 0:02:08]}  g5 {[%clk 0:14:48]}
52. Qh8+ {[%clk 0:02:29]} 1-0

[Event "2026 European Womens Championship"]
[Site "Batumi, GE"]
[Date "2026.05.30"]
[Round "6"]
[White "Mamedjarova, Turkan"]
[Black "Nahapetyan, Ani"]
[Result "0-1"]
[Board "95"]
[TimeControl "5400+30"]
[WhiteFideId "13402005"]
[BlackFideId "13317776"]
[WhiteElo "2222"]
[BlackElo "1827"]
[WhiteTitle "WGM"]
[WhiteClock "0:12:36"]
[BlackClock "0:18:52"]
[Variant "Standard"]

1. d4 {[%clk 1:30:57]}  d5 {[%clk 1:30:54]} 2. c4 {[%clk 1:30:54]}  c6 {[%clk 1:31:18]} 3. Nf3 {[%clk 1:30:59]}  Nf6 {[%clk 1:31:38]}
4. Nc3 {[%clk 1:31:04]}  e6 {[%clk 1:31:28]} 5. e3 {[%clk 1:31:25]}  Nbd7 {[%clk 1:31:09]} 6. Qc2 {[%clk 1:31:44]}  Bd6 {[%clk 1:30:10]}
7. b3 {[%clk 1:31:51]}  O-O {[%clk 1:28:40]} 8. Be2 {[%clk 1:31:59]}  b6 {[%clk 1:27:57]} 9. O-O {[%clk 1:32:13]}  Bb7 {[%clk 1:27:19]}
10. Bb2 {[%clk 1:32:35]}  Rc8 {[%clk 1:25:54]} 11. Rfd1 {[%clk 1:28:29]}  Qe7 {[%clk 1:24:42]} 12. h3 {[%clk 1:23:21]}  Rfd8 {[%clk 1:21:16]}
13. a3 {[%clk 1:19:12]}  c5 {[%clk 1:17:30]} 14. a4 {[%clk 1:08:27]}  dxc4 {[%clk 1:10:39]} 15. bxc4 {[%clk 1:08:07]}  cxd4 {[%clk 1:09:11]}
16. Nxd4 {[%clk 1:05:17]}  a6 {[%clk 1:01:51]} 17. a5 {[%clk 0:55:29]}  bxa5 {[%clk 0:59:52]} 18. Nb3 {[%clk 0:55:41]}  Nc5 {[%clk 0:56:15]}
19. Nxa5 {[%clk 0:55:40]}  Ba8 {[%clk 0:55:49]} 20. Na4 {[%clk 0:47:18]}  Nxa4 {[%clk 0:51:54]} 21. Rxa4 {[%clk 0:45:09]}  Ne4 {[%clk 0:48:15]}
22. Rd4 {[%clk 0:35:41]}  Qg5 {[%clk 0:29:26]} 23. Bf3 {[%clk 0:29:53]}  f5 {[%clk 0:26:05]} 24. Ra1 {[%clk 0:26:55]}  Bc5 {[%clk 0:22:28]}
25. Rxd8+ {[%clk 0:23:08]}  Rxd8 {[%clk 0:22:52]} 26. Rd1 {[%clk 0:20:26]}  Rxd1+ {[%clk 0:19:26]} 27. Qxd1 {[%clk 0:20:22]}  Nxf2 {[%clk 0:18:46]}
28. Qd7 {[%clk 0:15:20]}  Bxf3 {[%clk 0:18:32]} 29. Qxe6+ {[%clk 0:15:32]}  Kf8 {[%clk 0:18:56]} 30. Qc8+ {[%clk 0:12:44]}  Kf7 {[%clk 0:19:04]}
31. Qd7+ {[%clk 0:12:36]}  Be7 {[%clk 0:18:52]} 0-1

[Event "2026 European Womens Championship"]
[Site "Batumi, GE"]
[Date "2026.05.30"]
[Round "6"]
[White "Ivekovic, Tihana"]
[Black "Ibrahimova, Sabina"]
[Result "1/2-1/2"]
[Board "96"]
[TimeControl "5400+30"]
[WhiteFideId "14517825"]
[BlackFideId "13403893"]
[WhiteElo "2119"]
[BlackElo "2205"]
[WhiteTitle "WFM"]
[BlackTitle "WIM"]
[WhiteClock "0:05:30"]
[BlackClock "0:04:34"]
[Variant "Standard"]

1. e4 {[%clk 1:30:58]}  e5 {[%clk 1:25:47]} 2. Nf3 {[%clk 1:31:21]}  Nf6 {[%clk 1:26:03]} 3. Nxe5 {[%clk 1:31:31]}  d6 {[%clk 1:26:19]}
4. Nf3 {[%clk 1:31:55]}  Nxe4 {[%clk 1:26:31]} 5. d3 {[%clk 1:32:01]}  Nf6 {[%clk 1:25:42]} 6. d4 {[%clk 1:32:14]}  g6 {[%clk 1:24:28]}
7. Bd3 {[%clk 1:26:22]}  Bg7 {[%clk 1:23:48]} 8. O-O {[%clk 1:26:22]}  O-O {[%clk 1:24:02]} 9. h3 {[%clk 1:21:17]}  Nbd7 {[%clk 1:19:31]}
10. Nc3 {[%clk 1:15:20]}  b6 {[%clk 1:17:14]} 11. Re1 {[%clk 1:08:34]}  Bb7 {[%clk 1:16:39]} 12. Bf1 {[%clk 1:08:47]}  Nd5 {[%clk 1:09:22]}
13. Ne2 {[%clk 0:56:53]}  Re8 {[%clk 0:59:18]} 14. c4 {[%clk 0:47:20]}  N5f6 {[%clk 0:58:43]} 15. d5 {[%clk 0:47:43]}  a5 {[%clk 0:40:30]}
16. Ned4 {[%clk 0:46:24]}  Nc5 {[%clk 0:40:05]} 17. Be3 {[%clk 0:45:28]}  Qd7 {[%clk 0:39:12]} 18. b3 {[%clk 0:45:34]}  Qc8 {[%clk 0:28:15]}
19. a3 {[%clk 0:43:39]}  Nfd7 {[%clk 0:24:22]} 20. b4 {[%clk 0:39:47]}  axb4 {[%clk 0:23:29]} 21. axb4 {[%clk 0:40:11]}  Rxa1 {[%clk 0:23:00]}
22. Qxa1 {[%clk 0:40:35]}  Nb3 {[%clk 0:23:20]} 23. Qc3 {[%clk 0:37:58]}  Nxd4 {[%clk 0:23:40]} 24. Nxd4 {[%clk 0:38:11]}  b5 {[%clk 0:21:41]}
25. Rc1 {[%clk 0:33:09]}  Nb6 {[%clk 0:20:17]} 26. Qb3 {[%clk 0:33:32]}  bxc4 {[%clk 0:19:38]} 27. Bxc4 {[%clk 0:33:57]}  Nxc4 {[%clk 0:14:57]}
28. Qxc4 {[%clk 0:34:14]}  Qa8 {[%clk 0:14:36]} 29. Nc6 {[%clk 0:33:35]}  Qa3 {[%clk 0:13:27]} 30. b5 {[%clk 0:27:49]}  h5 {[%clk 0:12:34]}
31. Rd1 {[%clk 0:19:48]}  Kh7 {[%clk 0:08:11]} 32. Qd3 {[%clk 0:06:08]}  Qa4 {[%clk 0:05:36]} 33. Rc1 {[%clk 0:06:11]}  Kg8 {[%clk 0:04:29]}
34. Qc4 {[%clk 0:05:06]}  Qa3 {[%clk 0:04:34]} 35. Rd1 {[%clk 0:05:30]} 1/2-1/2

[Event "2026 European Womens Championship"]
[Site "Batumi, GE"]
[Date "2026.05.30"]
[Round "6"]
[White "Olde, Margareth"]
[Black "Nadanyan, Kiti"]
[Result "1-0"]
[Board "97"]
[TimeControl "5400+30"]
[WhiteFideId "4503082"]
[BlackFideId "13316710"]
[WhiteElo "2194"]
[BlackElo "1801"]
[WhiteTitle "WIM"]
[WhiteClock "0:02:16"]
[BlackClock "0:00:32"]
[Variant "Standard"]

1. Nf3 {[%clk 1:30:56]}  d5 {[%clk 1:27:55]} 2. g3 {[%clk 1:30:58]}  Nf6 {[%clk 1:27:48]} 3. Bg2 {[%clk 1:31:20]}  Bf5 {[%clk 1:28:09]}
4. c4 {[%clk 1:31:38]}  e6 {[%clk 1:19:22]} 5. Qb3 {[%clk 1:31:25]}  Nc6 {[%clk 1:13:23]} 6. O-O {[%clk 1:28:47]}  Be7 {[%clk 1:05:22]}
7. cxd5 {[%clk 1:15:55]}  exd5 {[%clk 1:05:14]} 8. Nc3 {[%clk 1:01:47]}  O-O {[%clk 0:39:08]} 9. d3 {[%clk 1:01:24]}  Qd7 {[%clk 0:36:32]}
10. Bf4 {[%clk 0:56:26]}  d4 {[%clk 0:33:05]} 11. Nb5 {[%clk 0:42:37]}  Rac8 {[%clk 0:24:39]} 12. Rfc1 {[%clk 0:38:03]}  a6 {[%clk 0:20:27]}
13. Nxc7 {[%clk 0:28:24]}  Rxc7 {[%clk 0:03:33]} 14. Bxc7 {[%clk 0:28:48]}  Qxc7 {[%clk 0:04:01]} 15. Nxd4 {[%clk 0:28:24]}  Nxd4 {[%clk 0:03:22]}
16. Rxc7 {[%clk 0:28:50]}  Nxb3 {[%clk 0:03:49]} 17. axb3 {[%clk 0:29:06]}  Bb4 {[%clk 0:03:42]} 18. Rxb7 {[%clk 0:22:31]}  a5 {[%clk 0:04:09]}
19. e4 {[%clk 0:21:41]}  Be6 {[%clk 0:04:01]} 20. d4 {[%clk 0:21:09]}  Bxb3 {[%clk 0:04:07]} 21. d5 {[%clk 0:20:21]}  Rd8 {[%clk 0:03:40]}
22. Rc1 {[%clk 0:19:45]}  Ne8 {[%clk 0:01:51]} 23. Ra7 {[%clk 0:08:51]}  Kf8 {[%clk 0:02:07]} 24. h4 {[%clk 0:08:35]}  f6 {[%clk 0:00:39]}
25. Bh3 {[%clk 0:03:46]}  Nd6 {[%clk 0:00:49]} 26. Rcc7 {[%clk 0:03:08]}  Nxe4 {[%clk 0:00:32]} 27. Be6 {[%clk 0:01:54]}  Bc5 {[%clk 0:00:36]}
28. Rab7 {[%clk 0:01:51]}  a4 {[%clk 0:00:32]} 29. Rxg7 {[%clk 0:01:50]}  Ke8 {[%clk 0:00:31]} 30. Rg8+ {[%clk 0:01:53]}  Bf8 {[%clk 0:00:32]}
31. Bf7# {[%clk 0:02:16]} 1-0

[Event "2026 European Womens Championship"]
[Site "Batumi, GE"]
[Date "2026.05.30"]
[Round "6"]
[White "Damaso Tacoronte, Carolina"]
[Black "Jimenez Fernandez, Rebeca"]
[Result "0-1"]
[Board "98"]
[TimeControl "5400+30"]
[WhiteFideId "2292858"]
[BlackFideId "32070934"]
[WhiteElo "1890"]
[BlackElo "2166"]
[BlackTitle "WFM"]
[WhiteClock "0:29:29"]
[BlackClock "0:41:44"]
[Variant "Standard"]

1. d4 {[%clk 1:30:58]}  d5 {[%clk 1:30:53]} 2. c4 {[%clk 1:30:40]}  e6 {[%clk 1:31:18]} 3. Nc3 {[%clk 1:30:23]}  a6 {[%clk 1:31:43]}
4. cxd5 {[%clk 1:27:56]}  exd5 {[%clk 1:32:08]} 5. Nf3 {[%clk 1:27:11]}  Nf6 {[%clk 1:32:32]} 6. Bg5 {[%clk 1:23:10]}  Be6 {[%clk 1:32:54]}
7. e3 {[%clk 1:22:28]}  Nbd7 {[%clk 1:33:17]} 8. Bd3 {[%clk 1:18:50]}  Bd6 {[%clk 1:33:38]} 9. Qc2 {[%clk 1:17:04]}  c6 {[%clk 1:30:05]}
10. a3 {[%clk 1:14:35]}  a5 {[%clk 1:29:12]} 11. e4 {[%clk 0:57:37]}  dxe4 {[%clk 1:28:02]} 12. Nxe4 {[%clk 0:57:56]}  Be7 {[%clk 1:27:18]}
13. Nc5 {[%clk 0:53:29]}  Nxc5 {[%clk 1:06:52]} 14. dxc5 {[%clk 0:53:20]}  Nd7 {[%clk 1:01:33]} 15. Be3 {[%clk 0:52:18]}  Bxc5 {[%clk 1:00:11]}
16. Bxc5 {[%clk 0:47:15]}  Nxc5 {[%clk 1:00:33]} 17. Bxh7 {[%clk 0:39:32]}  Qe7 {[%clk 0:55:48]} 18. O-O {[%clk 0:38:59]}  g6 {[%clk 0:52:49]}
19. Bxg6 {[%clk 0:38:12]}  fxg6 {[%clk 0:53:10]} 20. Rfe1 {[%clk 0:38:08]}  O-O-O {[%clk 0:49:56]} 21. b4 {[%clk 0:36:19]}  Nd3 {[%clk 0:29:48]}
22. Re3 {[%clk 0:35:14]}  Qf6 {[%clk 0:29:31]} 23. Rf1 {[%clk 0:21:18]}  Nf4 {[%clk 0:23:08]} 24. Rc1 {[%clk 0:07:04]}  Bd5 {[%clk 0:16:59]}
25. b5 {[%clk 0:05:51]}  Bxf3 {[%clk 0:10:43]} 26. Rxf3 {[%clk 0:04:21]}  Qg5 {[%clk 0:11:05]} 27. Rxf4 {[%clk 0:02:48]}  Qxf4 {[%clk 0:11:08]}
28. bxc6 {[%clk 0:01:49]}  Qxh2+ {[%clk 0:11:18]} 29. Kf1 {[%clk 0:02:19]}  Qh1+ {[%clk 0:10:21]} 30. Ke2 {[%clk 0:02:48]}  Rhe8+ {[%clk 0:10:08]}
31. Kf3 {[%clk 0:02:41]}  Qh5+ {[%clk 0:10:25]} 32. Kg3 {[%clk 0:02:17]}  Qe5+ {[%clk 0:10:37]} 33. f4 {[%clk 0:01:09]}  Qe3+ {[%clk 0:10:58]}
34. Kg4 {[%clk 0:01:02]}  Qe2+ {[%clk 0:10:55]} 35. Qxe2 {[%clk 0:00:42]}  Rxe2 {[%clk 0:11:20]} 36. cxb7+ {[%clk 0:29:29]}  Kxb7 {[%clk 0:41:44]} 0-1

[Event "2026 European Womens Championship"]
[Site "Batumi, GE"]
[Date "2026.05.30"]
[Round "6"]
[White "Gvetadze, Sofio"]
[Black "Buyuk, Ecrin Efsa"]
[Result "1/2-1/2"]
[Board "99"]
[TimeControl "5400+30"]
[WhiteFideId "13601440"]
[BlackFideId "44505175"]
[WhiteElo "2311"]
[BlackElo "2076"]
[WhiteTitle "IM"]
[BlackTitle "WFM"]
[WhiteClock "0:31:06"]
[BlackClock "0:28:57"]
[Variant "Standard"]

1. e4 {[%clk 1:30:57]}  c6 {[%clk 1:30:54]} 2. d4 {[%clk 1:31:13]}  d5 {[%clk 1:31:20]} 3. exd5 {[%clk 1:31:24]}  cxd5 {[%clk 1:31:45]}
4. c4 {[%clk 1:31:43]}  Nf6 {[%clk 1:32:04]} 5. Nc3 {[%clk 1:32:07]}  e6 {[%clk 1:32:30]} 6. Nf3 {[%clk 1:32:23]}  Bb4 {[%clk 1:31:38]}
7. cxd5 {[%clk 1:32:07]}  Nxd5 {[%clk 1:30:56]} 8. Bd2 {[%clk 1:32:23]}  Nc6 {[%clk 1:31:02]} 9. Bd3 {[%clk 1:32:37]}  O-O {[%clk 1:29:48]}
10. O-O {[%clk 1:32:46]}  Nf6 {[%clk 1:29:57]} 11. Bg5 {[%clk 1:32:40]}  h6 {[%clk 1:29:52]} 12. Bh4 {[%clk 1:31:59]}  Be7 {[%clk 1:30:04]}
13. a3 {[%clk 1:31:03]}  Bd7 {[%clk 1:26:05]} 14. Bc2 {[%clk 1:30:13]}  Nh5 {[%clk 1:21:04]} 15. Qd3 {[%clk 1:28:51]}  g6 {[%clk 1:18:41]}
16. Bxe7 {[%clk 1:27:46]}  Nxe7 {[%clk 1:19:06]} 17. Qe3 {[%clk 1:26:27]}  Kg7 {[%clk 1:16:03]} 18. Ne5 {[%clk 1:15:00]}  Bc6 {[%clk 1:10:25]}
19. Ng4 {[%clk 1:13:54]}  Ng8 {[%clk 1:09:20]} 20. d5 {[%clk 1:09:05]}  exd5 {[%clk 0:51:42]} 21. Rad1 {[%clk 1:09:01]}  Nhf6 {[%clk 0:48:54]}
22. Ne5 {[%clk 1:08:44]}  Re8 {[%clk 0:42:33]} 23. Qf4 {[%clk 1:06:08]}  Qe7 {[%clk 0:36:25]} 24. Rfe1 {[%clk 1:05:37]}  Nd7 {[%clk 0:32:45]}
25. Nxd5 {[%clk 0:39:57]}  Bxd5 {[%clk 0:30:32]} 26. Rxd5 {[%clk 0:39:45]}  Ngf6 {[%clk 0:29:32]} 27. Rb5 {[%clk 0:40:02]}  Qd6 {[%clk 0:02:46]}
28. Kf1 {[%clk 0:35:00]}  a6 {[%clk 0:01:53]} 29. Rd1 {[%clk 0:33:51]}  Qe7 {[%clk 0:01:24]} 30. Rxb7 {[%clk 0:28:34]}  Qxe5 {[%clk 0:01:49]}
31. Qxe5 {[%clk 0:29:00]}  Nxe5 {[%clk 0:01:53]} 32. Ba4 {[%clk 0:29:28]}  Red8 {[%clk 0:01:28]} 33. Re1 {[%clk 0:29:40]}  Nd3 {[%clk 0:00:59]}
34. Ree7 {[%clk 0:30:02]}  Rf8 {[%clk 0:00:55]} 35. Bb3 {[%clk 0:30:10]}  Nc5 {[%clk 0:01:12]} 36. Rxf7+ {[%clk 0:30:33]}  Kh8 {[%clk 0:01:08]}
37. Ra7 {[%clk 0:29:55]}  Rxa7 {[%clk 0:00:48]} 38. Rxf8+ {[%clk 0:30:22]}  Kg7 {[%clk 0:01:15]} 39. Rb8 {[%clk 0:30:45]}  Nxb3 {[%clk 0:00:53]}
40. Rxb3 {[%clk 0:31:12]}  Ne4 {[%clk 0:00:59]} 41. Rb4 {[%clk 0:31:03]}  Re7 {[%clk 0:01:01]} 42. f3 {[%clk 0:31:05]}  Nc5 {[%clk 0:01:02]}
43. Rd4 {[%clk 0:31:06]}  Nb3 {[%clk 0:28:57]} 1/2-1/2

[Event "2026 European Womens Championship"]
[Site "Batumi, GE"]
[Date "2026.05.30"]
[Round "6"]
[White "Lomaia, Diana"]
[Black "Kubicka, Anna"]
[Result "0-1"]
[Board "100"]
[TimeControl "5400+30"]
[WhiteFideId "13612476"]
[BlackFideId "1152254"]
[WhiteElo "2110"]
[BlackElo "2226"]
[WhiteTitle "WFM"]
[BlackTitle "WIM"]
[WhiteClock "0:01:31"]
[BlackClock "0:05:26"]
[Variant "Standard"]

1. d4 {[%clk 1:30:57]}  d6 {[%clk 1:30:37]} 2. e4 {[%clk 1:30:39]}  Nf6 {[%clk 1:31:02]} 3. Nc3 {[%clk 1:30:38]}  e5 {[%clk 1:31:26]}
4. f3 {[%clk 1:28:30]}  exd4 {[%clk 1:19:20]} 5. Qxd4 {[%clk 1:28:42]}  Nc6 {[%clk 1:18:24]} 6. Bb5 {[%clk 1:28:36]}  Bd7 {[%clk 1:17:37]}
7. Bxc6 {[%clk 1:27:48]}  Bxc6 {[%clk 1:15:39]} 8. Bg5 {[%clk 1:27:39]}  Be7 {[%clk 1:14:03]} 9. Nge2 {[%clk 1:27:25]}  O-O {[%clk 1:11:04]}
10. Be3 {[%clk 1:25:44]}  b5 {[%clk 0:57:39]} 11. O-O {[%clk 1:24:05]}  Bd7 {[%clk 0:56:51]} 12. a3 {[%clk 1:23:34]}  c5 {[%clk 0:50:11]}
13. Qd2 {[%clk 1:23:40]}  Bc6 {[%clk 0:50:05]} 14. Nf4 {[%clk 1:22:09]}  Re8 {[%clk 0:48:52]} 15. Rad1 {[%clk 1:19:51]}  Bf8 {[%clk 0:45:42]}
16. Qf2 {[%clk 1:13:17]}  Qb8 {[%clk 0:42:34]} 17. Ncd5 {[%clk 1:09:23]}  Nxd5 {[%clk 0:41:27]} 18. Nxd5 {[%clk 1:09:34]}  a5 {[%clk 0:40:09]}
19. Qg3 {[%clk 1:07:59]}  Re6 {[%clk 0:37:55]} 20. h4 {[%clk 1:04:54]}  b4 {[%clk 0:35:38]} 21. axb4 {[%clk 1:04:04]}  Bxd5 {[%clk 0:30:54]}
22. Rxd5 {[%clk 1:01:54]}  Qxb4 {[%clk 0:30:08]} 23. Bc1 {[%clk 0:57:19]}  a4 {[%clk 0:29:30]} 24. h5 {[%clk 0:55:22]}  h6 {[%clk 0:19:20]}
25. Rfd1 {[%clk 0:50:32]}  c4 {[%clk 0:14:31]} 26. c3 {[%clk 0:48:30]}  Qb3 {[%clk 0:14:29]} 27. Qf2 {[%clk 0:46:18]}  Re5 {[%clk 0:13:22]}
28. R1d4 {[%clk 0:36:40]}  Ra5 {[%clk 0:08:10]} 29. Rxa5 {[%clk 0:31:56]}  Rxa5 {[%clk 0:08:36]} 30. Qe2 {[%clk 0:31:14]}  Rc5 {[%clk 0:07:19]}
31. Qd1 {[%clk 0:15:05]}  a3 {[%clk 0:04:07]} 32. bxa3 {[%clk 0:11:38]}  Qxc3 {[%clk 0:04:36]} 33. Qd2 {[%clk 0:08:55]}  Qb3 {[%clk 0:01:56]}
34. Qb2 {[%clk 0:04:32]}  Be7 {[%clk 0:01:53]} 35. Qe2 {[%clk 0:03:18]}  c3 {[%clk 0:00:56]} 36. Rb4 {[%clk 0:03:31]}  Qe6 {[%clk 0:01:01]}
37. Rb8+ {[%clk 0:03:13]}  Rc8 {[%clk 0:01:20]} 38. Rxc8+ {[%clk 0:02:03]}  Qxc8 {[%clk 0:01:49]} 39. Qc2 {[%clk 0:01:51]}  Qc5+ {[%clk 0:01:56]}
40. Kf1 {[%clk 0:01:22]}  Bf6 {[%clk 0:01:20]} 41. g4 {[%clk 0:26:35]}  Bd8 {[%clk 0:15:31]} 42. Qf2 {[%clk 0:18:02]}  Qb5+ {[%clk 0:14:27]}
43. Qe2 {[%clk 0:14:44]}  Qb1 {[%clk 0:14:09]} 44. Qe1 {[%clk 0:14:54]}  c2 {[%clk 0:13:32]} 45. Kg2 {[%clk 0:05:16]}  Bf6 {[%clk 0:04:59]}
46. e5 {[%clk 0:03:24]}  dxe5 {[%clk 0:04:16]} 47. Qc3 {[%clk 0:01:41]}  Qxc1 {[%clk 0:04:18]} 48. Qc8+ {[%clk 0:02:02]}  Kh7 {[%clk 0:04:20]}
49. Qf5+ {[%clk 0:02:06]}  g6 {[%clk 0:04:26]} 50. Qxf6 {[%clk 0:02:03]}  Qd2+ {[%clk 0:04:46]} 51. Kh3 {[%clk 0:02:17]}  Qd7 {[%clk 0:05:01]}
52. hxg6+ {[%clk 0:01:31]}  fxg6 {[%clk 0:05:26]} 0-1